[Event "Early-Titled-Tuesday-Blitz-April-23-2024"]
[Site "Chess.com"]
[Date "2024.04.23"]
[Round "9"]
[White "szachuspl"]
[Black "Sofia_Blokhin"]
[Result "1-0"]
[WhiteElo "2536"]
[BlackElo "2278"]
[TimeControl "180+1"]
[EndTime "9:48:45 PDT"]
[Termination "szachuspl won by checkmate"]

1. d4 {[%clk 0:03:00.9]} 1... f5 {[%clk 0:02:56.2]} 2. h3 {[%clk 0:02:55]} 2...
Nf6 {[%clk 0:02:52.6]} 3. g4 {[%clk 0:02:55.1]} 3... fxg4 {[%clk 0:02:49.9]} 4.
hxg4 {[%clk 0:02:55.2]} 4... d5 {[%clk 0:02:44.8]} 5. g5 {[%clk 0:02:54.3]} 5...
Ne4 {[%clk 0:02:42.7]} 6. g6 {[%clk 0:02:54.2]} 6... h6 {[%clk 0:02:35]} 7. Bh3
{[%clk 0:02:52.8]} 7... Bxh3 {[%clk 0:02:30.7]} 8. Rxh3 {[%clk 0:02:51]} 8...
Qd7 {[%clk 0:02:24.3]} 9. Nc3 {[%clk 0:02:49.2]} 9... Nf6 {[%clk 0:02:18.2]} 10.
Rh1 {[%clk 0:02:43]} 10... Nc6 {[%clk 0:02:13.6]} 11. Nf3 {[%clk 0:02:43]} 11...
O-O-O {[%clk 0:02:10.1]} 12. Bf4 {[%clk 0:02:42.6]} 12... a6 {[%clk 0:02:05.5]}
13. Qd2 {[%clk 0:02:38.5]} 13... e6 {[%clk 0:01:56.9]} 14. O-O-O {[%clk
0:02:34.4]} 14... Bb4 {[%clk 0:01:54.5]} 15. Qd3 {[%clk 0:02:26.6]} 15... Rhf8
{[%clk 0:01:44.5]} 16. Ne5 {[%clk 0:02:25.5]} 16... Nxe5 {[%clk 0:01:42.2]} 17.
Bxe5 {[%clk 0:02:25.9]} 17... Bxc3 {[%clk 0:01:39.2]} 18. Qxc3 {[%clk 0:02:07]}
18... Ne4 {[%clk 0:01:37.8]} 19. Qa5 {[%clk 0:01:56.2]} 19... Nxf2 {[%clk
0:01:35.5]} 20. Rhf1 {[%clk 0:01:52.3]} 20... Nxd1 {[%clk 0:01:33.3]} 21. Rxd1
{[%clk 0:01:53.2]} 21... Rf5 {[%clk 0:01:24.9]} 22. a4 {[%clk 0:01:51.2]} 22...
Rdf8 {[%clk 0:01:23.4]} 23. Rd3 {[%clk 0:01:47.8]} 23... Rf1+ {[%clk 0:01:21.2]}
24. Kd2 {[%clk 0:01:47.9]} 24... Rg1 {[%clk 0:01:08.9]} 25. b4 {[%clk
0:01:45.2]} 25... Rxg6 {[%clk 0:00:47.1]} 26. b5 {[%clk 0:01:44.9]} 26... Kd8
{[%clk 0:00:34.5]} 27. Rc3 {[%clk 0:01:40.5]} 27... b6 {[%clk 0:00:30.4]} 28.
Qxa6 {[%clk 0:01:36.2]} 28... Rg2 {[%clk 0:00:17.6]} 29. Rxc7 {[%clk 0:01:33.7]}
29... Qxc7 {[%clk 0:00:11.1]} 30. Bxc7+ {[%clk 0:01:33.3]} 30... Kxc7 {[%clk
0:00:12]} 31. Qa7+ {[%clk 0:01:33.9]} 31... Kd6 {[%clk 0:00:09.9]} 32. Qxb6+
{[%clk 0:01:32.2]} 32... Ke7 {[%clk 0:00:09.8]} 33. Qc7+ {[%clk 0:01:29.9]}
33... Ke8 {[%clk 0:00:06.1]} 34. Qe5 {[%clk 0:01:26.1]} 34... Rff2 {[%clk
0:00:05.5]} 35. Qxe6+ {[%clk 0:01:26.2]} 35... Kd8 {[%clk 0:00:05.9]} 36. Qxd5+
{[%clk 0:01:24.6]} 36... Kc8 {[%clk 0:00:06.3]} 37. Qe6+ {[%clk 0:01:24.6]}
37... Kd8 {[%clk 0:00:05.9]} 38. a5 {[%clk 0:01:22.9]} 38... Rxe2+ {[%clk
0:00:03]} 39. Qxe2 {[%clk 0:01:23.1]} 39... Rxe2+ {[%clk 0:00:03.3]} 40. Kxe2
{[%clk 0:01:24]} 40... Kc7 {[%clk 0:00:02.7]} 41. c4 {[%clk 0:01:23.6]} 41... g5
{[%clk 0:00:02.5]} 42. Kf3 {[%clk 0:01:23.8]} 42... h5 {[%clk 0:00:03]} 43. Kg3
{[%clk 0:01:24.4]} 43... h4+ {[%clk 0:00:01.4]} 44. Kg4 {[%clk 0:01:24.5]} 44...
Kb7 {[%clk 0:00:02.3]} 45. c5 {[%clk 0:01:24.5]} 45... Kc7 {[%clk 0:00:02.7]}
46. d5 {[%clk 0:01:25.1]} 46... Kb7 {[%clk 0:00:03]} 47. d6 {[%clk 0:01:24.7]}
47... Kc8 {[%clk 0:00:03.2]} 48. a6 {[%clk 0:01:24.6]} 48... Kb8 {[%clk
0:00:02.4]} 49. b6 {[%clk 0:01:24]} 49... Ka8 {[%clk 0:00:02.3]} 50. c6 {[%clk
0:01:24.6]} 50... Kb8 {[%clk 0:00:02.5]} 51. d7 {[%clk 0:01:25.1]} 51... Ka8
{[%clk 0:00:01.5]} 52. d8=Q# {[%clk 0:01:22.3]} 1-0

[Event "Early-Titled-Tuesday-Blitz-April-23-2024"]
[Site "Chess.com"]
[Date "2024.04.23"]
[Round "9"]
[White "rdarruda"]
[Black "osielchesslover2011"]
[Result "1-0"]
[WhiteElo "2532"]
[BlackElo "2227"]
[TimeControl "180+1"]
[EndTime "9:48:47 PDT"]
[Termination "rdarruda won on time"]

1. d4 {[%clk 0:03:00.9]} 1... Nf6 {[%clk 0:02:59.5]} 2. Nf3 {[%clk 0:03:00]}
2... g6 {[%clk 0:02:59.1]} 3. Nc3 {[%clk 0:02:59.2]} 3... Bg7 {[%clk 0:02:59.7]}
4. e4 {[%clk 0:02:58.9]} 4... d6 {[%clk 0:02:59.3]} 5. Bg5 {[%clk 0:02:58.7]}
5... O-O {[%clk 0:02:55.5]} 6. Qd2 {[%clk 0:02:58.1]} 6... Nbd7 {[%clk
0:02:49.3]} 7. O-O-O {[%clk 0:02:57.2]} 7... c5 {[%clk 0:02:44]} 8. dxc5 {[%clk
0:02:54.2]} 8... Nxc5 {[%clk 0:02:38.2]} 9. Qe1 {[%clk 0:02:53.9]} 9... Bd7
{[%clk 0:02:24.6]} 10. e5 {[%clk 0:02:48.2]} 10... dxe5 {[%clk 0:02:20.4]} 11.
Nxe5 {[%clk 0:02:49.1]} 11... Qa5 {[%clk 0:01:47.1]} 12. Bxf6 {[%clk 0:02:34.7]}
12... exf6 {[%clk 0:01:33.2]} 13. Nxd7 {[%clk 0:02:33.9]} 13... Rfe8 {[%clk
0:01:32.1]} 14. Be2 {[%clk 0:02:18.4]} 14... Na4 {[%clk 0:01:25.3]} 15. Nxa4
{[%clk 0:02:01.3]} 15... Qxa4 {[%clk 0:01:26.2]} 16. Kb1 {[%clk 0:01:52]} 16...
Rac8 {[%clk 0:01:24.6]} 17. Rd2 {[%clk 0:01:22]} 17... f5 {[%clk 0:00:36.5]} 18.
Qd1 {[%clk 0:01:04.6]} 18... Bxb2 {[%clk 0:00:09]} 19. c3 {[%clk 0:00:58.9]}
19... Qxd1+ {[%clk 0:00:08.2]} 20. Rhxd1 {[%clk 0:00:58.4]} 20... Bxc3 {[%clk
0:00:08.8]} 21. Rc2 {[%clk 0:00:53.4]} 21... Bg7 {[%clk 0:00:07.5]} 22. Bf3
{[%clk 0:00:37.4]} 22... Rxc2 {[%clk 0:00:05.7]} 23. Kxc2 {[%clk 0:00:36.5]}
23... Rc8+ {[%clk 0:00:06.3]} 24. Kb1 {[%clk 0:00:36.3]} 24... b6 {[%clk
0:00:05.8]} 25. Bd5 {[%clk 0:00:32]} 25... Rd8 {[%clk 0:00:04.6]} 26. Bb3 {[%clk
0:00:31.5]} 26... h6 {[%clk 0:00:03.3]} 27. f4 {[%clk 0:00:30.5]} 27... Bc3
{[%clk 0:00:01.5]} 28. Ne5 {[%clk 0:00:28.9]} 1-0

[Event "Early-Titled-Tuesday-Blitz-April-23-2024"]
[Site "Chess.com"]
[Date "2024.04.23"]
[Round "9"]
[White "mapleaff"]
[Black "Zampronha1971"]
[Result "0-1"]
[WhiteElo "2276"]
[BlackElo "2439"]
[TimeControl "180+1"]
[EndTime "9:48:49 PDT"]
[Termination "Zampronha1971 won by resignation"]

1. d4 {[%clk 0:03:00.9]} 1... Nf6 {[%clk 0:02:59.4]} 2. c4 {[%clk 0:03:01]} 2...
e6 {[%clk 0:02:59.8]} 3. Nc3 {[%clk 0:03:00.9]} 3... Bb4 {[%clk 0:02:59.3]} 4.
e3 {[%clk 0:03:00.8]} 4... b6 {[%clk 0:02:58.2]} 5. Ne2 {[%clk 0:02:52.4]} 5...
Bb7 {[%clk 0:02:56.6]} 6. a3 {[%clk 0:02:52.9]} 6... Be7 {[%clk 0:02:55.8]} 7.
Nf4 {[%clk 0:02:44.5]} 7... O-O {[%clk 0:02:53.6]} 8. Bd3 {[%clk 0:02:43]} 8...
d5 {[%clk 0:02:49.2]} 9. cxd5 {[%clk 0:02:39.3]} 9... exd5 {[%clk 0:02:48]} 10.
O-O {[%clk 0:02:37.5]} 10... c5 {[%clk 0:02:36.8]} 11. b3 {[%clk 0:02:23.8]}
11... Nc6 {[%clk 0:02:32.6]} 12. Bc2 {[%clk 0:02:06.2]} 12... Bd6 {[%clk
0:02:28.1]} 13. Nfxd5 {[%clk 0:01:41.7]} 13... Nxd5 {[%clk 0:02:27.9]} 14. Nxd5
{[%clk 0:01:42.6]} 14... Bxh2+ {[%clk 0:02:26.8]} 15. Kxh2 {[%clk 0:01:43.5]}
15... Qxd5 {[%clk 0:02:26.7]} 16. dxc5 {[%clk 0:01:40.8]} 16... Qe5+ {[%clk
0:02:02.2]} 17. f4 {[%clk 0:01:09.6]} 17... Qxa1 {[%clk 0:01:58.5]} 18. Bxh7+
{[%clk 0:00:38]} 18... Kxh7 {[%clk 0:01:56.6]} 19. Qh5+ {[%clk 0:00:38.9]} 19...
Kg8 {[%clk 0:01:56.8]} 20. Rf3 {[%clk 0:00:31.8]} 20... g6 {[%clk 0:01:51]} 21.
Qh4 {[%clk 0:00:26.4]} 21... Rfd8 {[%clk 0:01:28]} 22. Rh3 {[%clk 0:00:20.9]}
22... Qg7 {[%clk 0:01:25.9]} 23. f5 {[%clk 0:00:15.2]} 23... g5 {[%clk
0:01:07.7]} 24. Qh5 {[%clk 0:00:12.6]} 24... f6 {[%clk 0:01:03.9]} 25. Qe2
{[%clk 0:00:02.8]} 25... Rd5 {[%clk 0:00:54.8]} 26. Qc4 {[%clk 0:00:01.8]} 26...
Qf7 {[%clk 0:00:49.3]} 27. e4 {[%clk 0:00:01.7]} 27... Rd7 {[%clk 0:00:47]} 28.
Qc3 {[%clk 0:00:02.2]} 28... Ne5 {[%clk 0:00:44.3]} 29. Bb2 {[%clk 0:00:02.1]}
29... Re8 {[%clk 0:00:42.8]} 30. Qg3 {[%clk 0:00:02.4]} 30... Bxe4 {[%clk
0:00:39.4]} 31. Rh6 {[%clk 0:00:02.1]} 31... Bxf5 {[%clk 0:00:37.9]} 32. Qh3
{[%clk 0:00:02.5]} 32... Bxh3 {[%clk 0:00:37.3]} 0-1

[Event "Early-Titled-Tuesday-Blitz-April-23-2024"]
[Site "Chess.com"]
[Date "2024.04.23"]
[Round "9"]
[White "jk13"]
[Black "FaustinoOro"]
[Result "1-0"]
[WhiteElo "2700"]
[BlackElo "2883"]
[TimeControl "180+1"]
[EndTime "9:48:51 PDT"]
[Termination "jk13 won on time"]

1. e4 {[%clk 0:03:00.9]} 1... e5 {[%clk 0:03:00]} 2. Nf3 {[%clk 0:03:00.7]} 2...
Nc6 {[%clk 0:02:59.2]} 3. Bc4 {[%clk 0:03:01.3]} 3... Bc5 {[%clk 0:02:58.9]} 4.
d3 {[%clk 0:03:02.2]} 4... Nf6 {[%clk 0:02:59]} 5. c3 {[%clk 0:03:02.8]} 5...
O-O {[%clk 0:02:58.1]} 6. O-O {[%clk 0:03:02.1]} 6... h6 {[%clk 0:02:58.3]} 7.
Re1 {[%clk 0:02:59.4]} 7... d6 {[%clk 0:02:57.6]} 8. Bb3 {[%clk 0:02:59.6]} 8...
a5 {[%clk 0:02:57.2]} 9. Nbd2 {[%clk 0:03:00.1]} 9... Re8 {[%clk 0:02:56.2]} 10.
h3 {[%clk 0:02:59.2]} 10... Ba7 {[%clk 0:02:55]} 11. Nf1 {[%clk 0:02:58.9]}
11... Ne7 {[%clk 0:02:55.2]} 12. Ng3 {[%clk 0:02:58.7]} 12... Ng6 {[%clk
0:02:55.5]} 13. d4 {[%clk 0:02:59.5]} 13... c6 {[%clk 0:02:46.6]} 14. Be3 {[%clk
0:02:59]} 14... Qc7 {[%clk 0:02:41.7]} 15. Qd2 {[%clk 0:02:54.6]} 15... Be6
{[%clk 0:02:19]} 16. Bc2 {[%clk 0:02:54.1]} 16... Rad8 {[%clk 0:02:16.5]} 17.
Rad1 {[%clk 0:02:53.1]} 17... Bc8 {[%clk 0:02:10.6]} 18. c4 {[%clk 0:02:30.3]}
18... b5 {[%clk 0:01:52.9]} 19. cxb5 {[%clk 0:02:18.7]} 19... cxb5 {[%clk
0:01:53.2]} 20. Rc1 {[%clk 0:02:19.5]} 20... b4 {[%clk 0:01:32.6]} 21. Ba4
{[%clk 0:02:18]} 21... Qb8 {[%clk 0:01:25.7]} 22. Bxe8 {[%clk 0:02:17.3]} 22...
Rxe8 {[%clk 0:01:26.6]} 23. Bxh6 {[%clk 0:02:02.3]} 23... exd4 {[%clk
0:01:00.1]} 24. Nf5 {[%clk 0:01:33.8]} 24... Nxe4 {[%clk 0:00:53.4]} 25. Rxe4
{[%clk 0:01:30.5]} 25... Rxe4 {[%clk 0:00:54.3]} 26. Nxg7 {[%clk 0:00:51.2]}
26... Be6 {[%clk 0:00:09.1]} 27. Nh5 {[%clk 0:00:47.1]} 27... Re5 {[%clk
0:00:04.2]} 28. Nxe5 {[%clk 0:00:37.6]} 28... dxe5 {[%clk 0:00:05.1]} 29. Qg5
{[%clk 0:00:32.8]} 29... Kh7 {[%clk 0:00:02.8]} 30. Bg7 {[%clk 0:00:23.2]} 1-0

[Event "Early-Titled-Tuesday-Blitz-April-23-2024"]
[Site "Chess.com"]
[Date "2024.04.23"]
[Round "9"]
[White "NMChessToImpress"]
[Black "BenchGM"]
[Result "1-0"]
[WhiteElo "2230"]
[BlackElo "2234"]
[TimeControl "180+1"]
[EndTime "9:48:55 PDT"]
[Termination "NMChessToImpress won by checkmate"]

1. e4 {[%clk 0:03:00.9]} 1... c5 {[%clk 0:02:58]} 2. Nf3 {[%clk 0:03:01]} 2...
e6 {[%clk 0:02:58.2]} 3. d4 {[%clk 0:03:00.8]} 3... cxd4 {[%clk 0:02:58.4]} 4.
Nxd4 {[%clk 0:03:01.2]} 4... Nc6 {[%clk 0:02:58.8]} 5. Nc3 {[%clk 0:03:00.6]}
5... Qc7 {[%clk 0:02:58.7]} 6. Be3 {[%clk 0:02:59.3]} 6... a6 {[%clk 0:02:58.6]}
7. Qd2 {[%clk 0:02:59.2]} 7... Nf6 {[%clk 0:02:57.7]} 8. O-O-O {[%clk
0:02:58.5]} 8... Be7 {[%clk 0:02:56.6]} 9. f3 {[%clk 0:02:53.5]} 9... b5 {[%clk
0:02:54.6]} 10. g4 {[%clk 0:02:49.9]} 10... O-O {[%clk 0:02:49.7]} 11. g5 {[%clk
0:02:41.5]} 11... Nh5 {[%clk 0:02:32.7]} 12. Nxc6 {[%clk 0:02:17.4]} 12... dxc6
{[%clk 0:02:22.5]} 13. f4 {[%clk 0:01:59.2]} 13... b4 {[%clk 0:01:53.9]} 14. Ne2
{[%clk 0:01:57.1]} 14... Qa5 {[%clk 0:01:10.2]} 15. Kb1 {[%clk 0:01:50.4]} 15...
Rd8 {[%clk 0:01:06.6]} 16. Qe1 {[%clk 0:01:48.1]} 16... Bb7 {[%clk 0:00:55.4]}
17. Ng3 {[%clk 0:01:27.4]} 17... Nxg3 {[%clk 0:00:36.7]} 18. hxg3 {[%clk
0:01:28.3]} 18... c5 {[%clk 0:00:36.5]} 19. Bd3 {[%clk 0:01:18.8]} 19... c4
{[%clk 0:00:28.9]} 20. Bxc4 {[%clk 0:01:18.4]} 20... Bxe4 {[%clk 0:00:28.6]} 21.
Rh2 {[%clk 0:01:06.9]} 21... Qc7 {[%clk 0:00:18.7]} 22. b3 {[%clk 0:00:49.6]}
22... a5 {[%clk 0:00:17.2]} 23. Rhd2 {[%clk 0:00:49.2]} 23... a4 {[%clk
0:00:16.6]} 24. Rxd8+ {[%clk 0:00:45.5]} 24... Rxd8 {[%clk 0:00:16.7]} 25. Rxd8+
{[%clk 0:00:30.2]} 25... Qxd8 {[%clk 0:00:16.2]} 26. Bd2 {[%clk 0:00:30.4]}
26... axb3 {[%clk 0:00:16]} 27. axb3 {[%clk 0:00:25.6]} 27... Qa5 {[%clk
0:00:16.1]} 28. Qxe4 {[%clk 0:00:20.6]} 28... Bc5 {[%clk 0:00:15]} 29. f5 {[%clk
0:00:17.9]} 29... exf5 {[%clk 0:00:06.4]} 30. Qe8+ {[%clk 0:00:17.2]} 30... Bf8
{[%clk 0:00:06.7]} 31. Qxf7+ {[%clk 0:00:17.3]} 31... Kh8 {[%clk 0:00:06.4]} 32.
Qg8# {[%clk 0:00:18.2]} 1-0

[Event "Early-Titled-Tuesday-Blitz-April-23-2024"]
[Site "Chess.com"]
[Date "2024.04.23"]
[Round "9"]
[White "Incognito_Knight"]
[Black "TenisMaster"]
[Result "1-0"]
[WhiteElo "2757"]
[BlackElo "2952"]
[TimeControl "180+1"]
[EndTime "9:48:57 PDT"]
[Termination "Incognito_Knight won on time"]

1. e4 {[%clk 0:03:00.4]} 1... e5 {[%clk 0:02:59.8]} 2. Nf3 {[%clk 0:02:58]} 2...
Nc6 {[%clk 0:02:59.9]} 3. Nc3 {[%clk 0:02:58.2]} 3... Nf6 {[%clk 0:02:59.5]} 4.
a3 {[%clk 0:02:58.5]} 4... d6 {[%clk 0:02:42.3]} 5. d4 {[%clk 0:02:57.9]} 5...
Bg4 {[%clk 0:02:34.3]} 6. Bb5 {[%clk 0:02:56.7]} 6... exd4 {[%clk 0:02:31.5]} 7.
Qxd4 {[%clk 0:02:57.6]} 7... Bd7 {[%clk 0:02:25.5]} 8. Qd3 {[%clk 0:02:53]} 8...
Be7 {[%clk 0:02:25.1]} 9. Bf4 {[%clk 0:02:47]} 9... a6 {[%clk 0:02:23.3]} 10.
Bxc6 {[%clk 0:02:42.4]} 10... Bxc6 {[%clk 0:02:23.7]} 11. O-O-O {[%clk
0:02:40.3]} 11... O-O {[%clk 0:02:21.8]} 12. Nd4 {[%clk 0:02:38.6]} 12... Bd7
{[%clk 0:02:15.7]} 13. f3 {[%clk 0:02:37.3]} 13... b5 {[%clk 0:02:07.9]} 14. g4
{[%clk 0:02:34.4]} 14... g6 {[%clk 0:01:55.8]} 15. Bh6 {[%clk 0:02:18.6]} 15...
Re8 {[%clk 0:01:54.5]} 16. h4 {[%clk 0:02:17.1]} 16... c5 {[%clk 0:01:51.3]} 17.
Nf5 {[%clk 0:01:57.7]} 17... gxf5 {[%clk 0:01:48.5]} 18. exf5 {[%clk 0:01:49.2]}
18... b4 {[%clk 0:01:45.5]} 19. axb4 {[%clk 0:01:11.9]} 19... cxb4 {[%clk
0:01:45.4]} 20. Nd5 {[%clk 0:01:12.3]} 20... Nxd5 {[%clk 0:01:27.8]} 21. Qxd5
{[%clk 0:01:11.1]} 21... Rc8 {[%clk 0:01:28.3]} 22. g5 {[%clk 0:01:01]} 22...
Qc7 {[%clk 0:01:20]} 23. Rh2 {[%clk 0:00:51.9]} 23... Ba4 {[%clk 0:00:59.2]} 24.
g6 {[%clk 0:00:41.9]} 24... hxg6 {[%clk 0:00:11.7]} 25. fxg6 {[%clk 0:00:42.8]}
25... Bf6 {[%clk 0:00:06.1]} 26. gxf7+ {[%clk 0:00:40.9]} 26... Kh7 {[%clk
0:00:03.1]} 27. Qf5+ {[%clk 0:00:31.4]} 27... Kxh6 {[%clk 0:00:01.3]} 28. Qxf6+
{[%clk 0:00:31.6]} 28... Kh7 {[%clk 0:00:01.8]} 29. fxe8=Q {[%clk 0:00:24.6]}
29... Rxe8 {[%clk 0:00:02.7]} 30. Rg2 {[%clk 0:00:16.5]} 1-0

[Event "Early-Titled-Tuesday-Blitz-April-23-2024"]
[Site "Chess.com"]
[Date "2024.04.23"]
[Round "9"]
[White "Golubovsky"]
[Black "Korchmar_Vasiliy"]
[Result "0-1"]
[WhiteElo "2528"]
[BlackElo "2713"]
[TimeControl "180+1"]
[EndTime "9:49:00 PDT"]
[Termination "Korchmar_Vasiliy won on time"]

1. c4 {[%clk 0:03:00.9]} 1... c5 {[%clk 0:02:58.9]} 2. Nc3 {[%clk 0:03:00.8]}
2... Nc6 {[%clk 0:02:52.3]} 3. g3 {[%clk 0:03:00.7]} 3... Nf6 {[%clk 0:02:51.7]}
4. Bg2 {[%clk 0:03:01.2]} 4... g6 {[%clk 0:02:51.9]} 5. Nf3 {[%clk 0:03:00.4]}
5... Bg7 {[%clk 0:02:52.3]} 6. a3 {[%clk 0:03:01]} 6... O-O {[%clk 0:02:52.1]}
7. Rb1 {[%clk 0:03:01.7]} 7... d5 {[%clk 0:02:50.5]} 8. cxd5 {[%clk 0:02:58.3]}
8... Nxd5 {[%clk 0:02:51.4]} 9. O-O {[%clk 0:02:58.8]} 9... Bf5 {[%clk 0:02:42]}
10. Ra1 {[%clk 0:02:37.4]} 10... c4 {[%clk 0:02:36.5]} 11. Nxd5 {[%clk
0:02:06.5]} 11... Qxd5 {[%clk 0:02:37.4]} 12. Nh4 {[%clk 0:02:06.4]} 12... Be4
{[%clk 0:02:27.8]} 13. f3 {[%clk 0:01:55.5]} 13... Qc5+ {[%clk 0:02:26.7]} 14.
Kh1 {[%clk 0:01:51]} 14... Bd5 {[%clk 0:02:27.1]} 15. Rb1 {[%clk 0:01:19.2]}
15... Nd4 {[%clk 0:02:19]} 16. d3 {[%clk 0:00:50.6]} 16... cxd3 {[%clk
0:01:43.6]} 17. Qxd3 {[%clk 0:00:50.3]} 17... Bc4 {[%clk 0:01:41.9]} 18. Qe3
{[%clk 0:00:49]} 18... Qc7 {[%clk 0:01:12.8]} 19. Bd2 {[%clk 0:00:34.5]} 19...
Bxe2 {[%clk 0:01:04.5]} 20. Rfe1 {[%clk 0:00:30]} 20... Bb5 {[%clk 0:00:57.6]}
21. Qxe7 {[%clk 0:00:27.4]} 21... Qc2 {[%clk 0:00:57.8]} 22. Bc3 {[%clk
0:00:18.5]} 22... Rae8 {[%clk 0:00:47.8]} 23. Qxb7 {[%clk 0:00:17.1]} 23... Bc6
{[%clk 0:00:42.2]} 24. Qxa7 {[%clk 0:00:15.6]} 24... Nb5 {[%clk 0:00:31.1]} 25.
Qc5 {[%clk 0:00:13.2]} 25... Nxc3 {[%clk 0:00:27.4]} 26. bxc3 {[%clk 0:00:02.4]}
26... Ba8 {[%clk 0:00:22]} 27. Rec1 {[%clk 0:00:03]} 27... Qa2 {[%clk 0:00:19]}
28. Qb4 {[%clk 0:00:01.6]} 28... Re2 {[%clk 0:00:15.1]} 0-1

[Event "Early-Titled-Tuesday-Blitz-April-23-2024"]
[Site "Chess.com"]
[Date "2024.04.23"]
[Round "9"]
[White "ubdip"]
[Black "BozeKat"]
[Result "1-0"]
[WhiteElo "2390"]
[BlackElo "2117"]
[TimeControl "180+1"]
[EndTime "9:49:09 PDT"]
[Termination "ubdip won on time"]

1. c4 {[%clk 0:03:00.9]} 1... e5 {[%clk 0:02:58.8]} 2. Nc3 {[%clk 0:03:01.5]}
2... Nf6 {[%clk 0:02:58.8]} 3. Nf3 {[%clk 0:03:01.8]} 3... Nc6 {[%clk
0:02:58.1]} 4. e3 {[%clk 0:02:59.8]} 4... e4 {[%clk 0:02:55.2]} 5. Nd4 {[%clk
0:03:00]} 5... Bb4 {[%clk 0:02:49.8]} 6. Qc2 {[%clk 0:02:46]} 6... Qe7 {[%clk
0:02:39.9]} 7. a3 {[%clk 0:02:30.3]} 7... Bxc3 {[%clk 0:02:35.5]} 8. Qxc3 {[%clk
0:02:31.2]} 8... O-O {[%clk 0:02:31.1]} 9. Be2 {[%clk 0:02:28.8]} 9... d5 {[%clk
0:02:23.8]} 10. b4 {[%clk 0:02:17.3]} 10... Be6 {[%clk 0:01:58.2]} 11. Bb2
{[%clk 0:02:05.2]} 11... Rad8 {[%clk 0:01:29.9]} 12. Nxc6 {[%clk 0:01:44.7]}
12... bxc6 {[%clk 0:01:30.8]} 13. O-O {[%clk 0:01:40.1]} 13... Qd6 {[%clk
0:01:01.2]} 14. c5 {[%clk 0:01:20.2]} 14... Qe7 {[%clk 0:00:57.2]} 15. h3 {[%clk
0:01:16.2]} 15... Ne8 {[%clk 0:00:53]} 16. Qe5 {[%clk 0:01:02.5]} 16... Qf6
{[%clk 0:00:42.8]} 17. f4 {[%clk 0:00:54.9]} 17... Qxe5 {[%clk 0:00:33.1]} 18.
Bxe5 {[%clk 0:00:47.6]} 18... f6 {[%clk 0:00:19.7]} 19. Bd4 {[%clk 0:00:46.5]}
19... a5 {[%clk 0:00:18.1]} 20. bxa5 {[%clk 0:00:35.9]} 20... Ra8 {[%clk
0:00:16.8]} 21. a6 {[%clk 0:00:36]} 21... Kf7 {[%clk 0:00:16.4]} 22. Rfb1 {[%clk
0:00:19.8]} 22... Bc8 {[%clk 0:00:15.7]} 23. a4 {[%clk 0:00:17.2]} 23... Bxa6
{[%clk 0:00:15.6]} 24. Bxa6 {[%clk 0:00:17.4]} 24... Rxa6 {[%clk 0:00:16.5]} 25.
Rb7 {[%clk 0:00:17.2]} 25... g6 {[%clk 0:00:12.6]} 26. Bc3 {[%clk 0:00:16.9]}
26... Ke7 {[%clk 0:00:11.9]} 27. a5 {[%clk 0:00:16.9]} 27... Kd7 {[%clk
0:00:11.2]} 28. Rab1 {[%clk 0:00:16.9]} 28... Ng7 {[%clk 0:00:09.2]} 29. Rb8
{[%clk 0:00:16.9]} 29... Rxb8 {[%clk 0:00:08.2]} 30. Rxb8 {[%clk 0:00:17.8]}
30... Nh5 {[%clk 0:00:07.5]} 31. Kf2 {[%clk 0:00:16.7]} 31... Ng7 {[%clk
0:00:06.1]} 32. Rh8 {[%clk 0:00:16.2]} 32... Ne6 {[%clk 0:00:03.9]} 33. Rxh7+
{[%clk 0:00:16.2]} 33... Kc8 {[%clk 0:00:04.3]} 34. Bb4 {[%clk 0:00:15.6]} 34...
g5 {[%clk 0:00:02.6]} 35. Re7 {[%clk 0:00:15]} 1-0

[Event "Early-Titled-Tuesday-Blitz-April-23-2024"]
[Site "Chess.com"]
[Date "2024.04.23"]
[Round "9"]
[White "ATM622"]
[Black "azikom"]
[Result "0-1"]
[WhiteElo "2501"]
[BlackElo "2701"]
[TimeControl "180+1"]
[EndTime "9:49:10 PDT"]
[Termination "azikom won by resignation"]

1. d4 {[%clk 0:03:00.9]} 1... c6 {[%clk 0:03:00.8]} 2. c4 {[%clk 0:03:00.6]}
2... d5 {[%clk 0:03:01.2]} 3. Nf3 {[%clk 0:03:00.3]} 3... Nf6 {[%clk 0:03:01.1]}
4. Nbd2 {[%clk 0:03:00.3]} 4... Bf5 {[%clk 0:03:00.2]} 5. Nh4 {[%clk 0:03:00.6]}
5... Bg4 {[%clk 0:02:59.9]} 6. h3 {[%clk 0:03:00.5]} 6... Bh5 {[%clk 0:03:00.3]}
7. g4 {[%clk 0:03:01]} 7... Bg6 {[%clk 0:03:00.9]} 8. Nxg6 {[%clk 0:03:01.3]}
8... hxg6 {[%clk 0:03:01.3]} 9. Bg2 {[%clk 0:03:01.8]} 9... e6 {[%clk
0:03:01.9]} 10. Qc2 {[%clk 0:03:01.8]} 10... Na6 {[%clk 0:02:58.5]} 11. a3
{[%clk 0:03:01.6]} 11... Be7 {[%clk 0:02:57.5]} 12. O-O {[%clk 0:03:01.8]} 12...
Rc8 {[%clk 0:02:53.5]} 13. b4 {[%clk 0:02:58.4]} 13... Nc7 {[%clk 0:02:48.3]}
14. Bb2 {[%clk 0:02:57.3]} 14... O-O {[%clk 0:02:42]} 15. e4 {[%clk 0:02:55.7]}
15... Nxe4 {[%clk 0:02:39.1]} 16. Nxe4 {[%clk 0:02:53.2]} 16... dxe4 {[%clk
0:02:40]} 17. Qxe4 {[%clk 0:02:53.5]} 17... Ne8 {[%clk 0:02:37.6]} 18. Rad1
{[%clk 0:02:48.8]} 18... Bf6 {[%clk 0:02:33.5]} 19. Qb1 {[%clk 0:02:44.4]} 19...
Nd6 {[%clk 0:02:31.9]} 20. d5 {[%clk 0:02:36.7]} 20... Bxb2 {[%clk 0:02:24.2]}
21. dxe6 {[%clk 0:02:34.3]} 21... Be5 {[%clk 0:02:09.5]} 22. exf7+ {[%clk
0:02:32.8]} 22... Rxf7 {[%clk 0:02:06.9]} 23. Qxg6 {[%clk 0:01:57.9]} 23... Qf6
{[%clk 0:01:57.8]} 24. Qc2 {[%clk 0:01:46.3]} 24... Qf4 {[%clk 0:01:56.3]} 25.
Rfe1 {[%clk 0:01:46.1]} 25... Rcf8 {[%clk 0:01:46.8]} 26. Re2 {[%clk 0:01:35.5]}
26... Nxc4 {[%clk 0:01:36.1]} 27. Rd3 {[%clk 0:01:15.8]} 27... Bc7 {[%clk
0:01:10.8]} 28. Be4 {[%clk 0:00:58.7]} 28... Ne5 {[%clk 0:01:06.5]} 29. Rg3
{[%clk 0:00:46.1]} 29... Bb6 {[%clk 0:01:04.7]} 30. Rg2 {[%clk 0:00:34.2]} 30...
Nf3+ {[%clk 0:01:02.9]} 31. Bxf3 {[%clk 0:00:32.5]} 31... Qxf3 {[%clk
0:01:03.8]} 32. g5 {[%clk 0:00:23.6]} 32... Rf5 {[%clk 0:00:59.2]} 33. g6 {[%clk
0:00:14]} 33... Qd5 {[%clk 0:00:50.8]} 34. Re7 {[%clk 0:00:07.8]} 34... Bxf2+
{[%clk 0:00:43.8]} 35. Rxf2 {[%clk 0:00:04.4]} 35... Rxf2 {[%clk 0:00:43.4]} 36.
Qxf2 {[%clk 0:00:02.6]} 36... Rxf2 {[%clk 0:00:42.7]} 37. Kxf2 {[%clk 0:00:03]}
37... Qf5+ {[%clk 0:00:42.4]} 38. Ke2 {[%clk 0:00:01.3]} 38... Qxg6 {[%clk
0:00:39.8]} 39. Re8+ {[%clk 0:00:01.2]} 0-1